[Event "Late-Titled-Tuesday-Blitz-March-05-2024"]
[Site "Chess.com"]
[Date "2024.03.05"]
[Round "8"]
[White "C_K_G"]
[Black "Kostukov_Alex"]
[Result "0-1"]
[WhiteElo "2181"]
[BlackElo "2340"]
[TimeControl "180+1"]
[EndTime "15:24:35 PST"]
[Termination "Kostukov_Alex won by resignation"]

1. e4 {[%clk 0:03:00.9]} 1... c5 {[%clk 0:02:58.7]} 2. Nf3 {[%clk 0:03:00.7]}
2... g6 {[%clk 0:02:58]} 3. d4 {[%clk 0:03:00.9]} 3... cxd4 {[%clk 0:02:54.4]}
4. Nxd4 {[%clk 0:03:01.8]} 4... Bg7 {[%clk 0:02:53.8]} 5. Nc3 {[%clk 0:03:02.3]}
5... Nc6 {[%clk 0:02:54.4]} 6. Be3 {[%clk 0:03:01.4]} 6... Nf6 {[%clk
0:02:54.2]} 7. Be2 {[%clk 0:03:01.2]} 7... O-O {[%clk 0:02:54]} 8. O-O {[%clk
0:03:01.5]} 8... d5 {[%clk 0:02:54.1]} 9. exd5 {[%clk 0:03:02]} 9... Nb4 {[%clk
0:02:54.2]} 10. d6 {[%clk 0:02:49]} 10... Qxd6 {[%clk 0:02:52.7]} 11. Ndb5
{[%clk 0:02:44.6]} 11... Qxd1 {[%clk 0:02:43.9]} 12. Bxd1 {[%clk 0:02:45.5]}
12... Bf5 {[%clk 0:02:26.5]} 13. Nxa7 {[%clk 0:02:30]} 13... Nxc2 {[%clk
0:02:22.6]} 14. Bxc2 {[%clk 0:02:30.5]} 14... Bxc2 {[%clk 0:02:22.8]} 15. Rfc1
{[%clk 0:02:28.1]} 15... Bd3 {[%clk 0:02:15.8]} 16. a4 {[%clk 0:02:28.5]} 16...
Ne4 {[%clk 0:02:13.9]} 17. Nab5 {[%clk 0:02:19.6]} 17... Bxb5 {[%clk 0:02:04.8]}
18. axb5 {[%clk 0:02:20.5]} 18... Rxa1 {[%clk 0:02:02.6]} 19. Rxa1 {[%clk
0:02:21.2]} 19... Nxc3 {[%clk 0:02:02.7]} 20. bxc3 {[%clk 0:02:22.1]} 20... Bxc3
{[%clk 0:02:02]} 21. Ra7 {[%clk 0:02:21.5]} 21... Rb8 {[%clk 0:01:55]} 22. Bc5
{[%clk 0:02:12.3]} 22... Rd8 {[%clk 0:01:47.5]} 23. g3 {[%clk 0:02:09.6]} 23...
Rd7 {[%clk 0:01:47.2]} 24. Kf1 {[%clk 0:01:58.1]} 24... Kg7 {[%clk 0:01:42.3]}
25. Ke2 {[%clk 0:01:57]} 25... e5 {[%clk 0:01:40.2]} 26. Ra8 {[%clk 0:01:51.6]}
26... Rd5 {[%clk 0:01:39]} 27. Bf8+ {[%clk 0:01:50.3]} 27... Kf6 {[%clk
0:01:37.7]} 28. Rc8 {[%clk 0:01:27.2]} 28... Ba5 {[%clk 0:01:19.9]} 29. Bc5
{[%clk 0:01:18.6]} 29... b6 {[%clk 0:01:17.2]} 30. Rc6+ {[%clk 0:01:17.5]} 30...
Kf5 {[%clk 0:01:10.3]} 31. Be3 {[%clk 0:01:02.8]} 31... Rxb5 {[%clk 0:01:06.6]}
32. f3 {[%clk 0:01:02.7]} 32... h5 {[%clk 0:01:06.3]} 33. h3 {[%clk 0:01:02.1]}
33... e4 {[%clk 0:01:00.4]} 34. Rd6 {[%clk 0:00:40.9]} 34... Rb2+ {[%clk
0:00:55]} 35. Kd1 {[%clk 0:00:38]} 35... exf3 {[%clk 0:00:54.9]} 36. Bd4 {[%clk
0:00:16.1]} 36... Rd2+ {[%clk 0:00:51.5]} 37. Kc1 {[%clk 0:00:16.4]} 37... Ke4
{[%clk 0:00:51.2]} 0-1

[Event "Late-Titled-Tuesday-Blitz-March-05-2024"]
[Site "Chess.com"]
[Date "2024.03.05"]
[Round "8"]
[White "GoValya"]
[Black "SergioMoralesG"]
[Result "1-0"]
[WhiteElo "2251"]
[BlackElo "2446"]
[TimeControl "180+1"]
[EndTime "15:24:36 PST"]
[Termination "GoValya won on time"]

1. d4 {[%clk 0:03:00.9]} 1... d5 {[%clk 0:02:58.4]} 2. c4 {[%clk 0:03:00.2]}
2... c6 {[%clk 0:02:59]} 3. Nf3 {[%clk 0:03:00.1]} 3... Nf6 {[%clk 0:02:59.6]}
4. g3 {[%clk 0:03:00.4]} 4... Bf5 {[%clk 0:02:59.2]} 5. Bg2 {[%clk 0:03:00.5]}
5... e6 {[%clk 0:02:59.6]} 6. O-O {[%clk 0:03:00.2]} 6... Nbd7 {[%clk
0:03:00.2]} 7. Nc3 {[%clk 0:02:59.7]} 7... h6 {[%clk 0:02:59.7]} 8. Nd2 {[%clk
0:02:59.7]} 8... Be7 {[%clk 0:02:58.4]} 9. e4 {[%clk 0:02:59.8]} 9... dxe4
{[%clk 0:02:58.5]} 10. Ndxe4 {[%clk 0:03:00.2]} 10... O-O {[%clk 0:02:58.7]} 11.
Be3 {[%clk 0:02:52.2]} 11... Qc7 {[%clk 0:02:41.1]} 12. Rc1 {[%clk 0:02:50.3]}
12... Rad8 {[%clk 0:02:39.5]} 13. Qe2 {[%clk 0:02:46.2]} 13... Rfe8 {[%clk
0:02:24.1]} 14. d5 {[%clk 0:02:30.4]} 14... exd5 {[%clk 0:02:21.1]} 15. cxd5
{[%clk 0:02:30]} 15... Nb6 {[%clk 0:02:06.6]} 16. dxc6 {[%clk 0:01:49.3]} 16...
bxc6 {[%clk 0:02:05.1]} 17. Nb5 {[%clk 0:01:24.6]} 17... Qe5 {[%clk 0:01:43.7]}
18. Nxa7 {[%clk 0:01:10]} 18... Bxe4 {[%clk 0:01:40.3]} 19. Bxb6 {[%clk
0:01:00.5]} 19... Rb8 {[%clk 0:01:38.5]} 20. Nxc6 {[%clk 0:00:58.3]} 20... Qf5
{[%clk 0:00:38]} 21. Nxb8 {[%clk 0:00:48.7]} 21... Bxg2 {[%clk 0:00:26.7]} 22.
Kxg2 {[%clk 0:00:44.3]} 22... Bd6 {[%clk 0:00:03]} 23. Qf3 {[%clk 0:00:30.3]}
23... Qb5 {[%clk 0:00:02.6]} 24. Bd4 {[%clk 0:00:23.8]} 1-0

[Event "Late-Titled-Tuesday-Blitz-March-05-2024"]
[Site "Chess.com"]
[Date "2024.03.05"]
[Round "8"]
[White "Zallio"]
[Black "ritanovikova"]
[Result "0-1"]
[WhiteElo "2142"]
[BlackElo "2215"]
[TimeControl "180+1"]
[EndTime "15:24:39 PST"]
[Termination "ritanovikova won by resignation"]

1. d4 {[%clk 0:02:54.9]} 1... e5 {[%clk 0:02:59.3]} 2. dxe5 {[%clk 0:02:52.4]}
2... Nc6 {[%clk 0:02:59.5]} 3. Nf3 {[%clk 0:02:50.4]} 3... Qe7 {[%clk
0:02:59.4]} 4. Qd5 {[%clk 0:02:44.7]} 4... d6 {[%clk 0:02:54.3]} 5. exd6 {[%clk
0:02:43.9]} 5... Qxd6 {[%clk 0:02:55.2]} 6. Qxd6 {[%clk 0:02:43.7]} 6... Bxd6
{[%clk 0:02:56.1]} 7. e3 {[%clk 0:02:40.5]} 7... Nb4 {[%clk 0:02:55]} 8. Bd3
{[%clk 0:02:39.7]} 8... Nxd3+ {[%clk 0:02:53.3]} 9. cxd3 {[%clk 0:02:39.8]} 9...
Bf5 {[%clk 0:02:52.4]} 10. Ke2 {[%clk 0:02:33.9]} 10... O-O-O {[%clk 0:02:51.2]}
11. Nc3 {[%clk 0:02:31.4]} 11... Nf6 {[%clk 0:02:45.5]} 12. h3 {[%clk
0:02:29.7]} 12... h6 {[%clk 0:02:42.8]} 13. Bd2 {[%clk 0:02:21]} 13... Bb4
{[%clk 0:02:39.3]} 14. e4 {[%clk 0:02:18.7]} 14... Bg6 {[%clk 0:02:35.4]} 15.
Rhc1 {[%clk 0:02:17.2]} 15... Kb8 {[%clk 0:02:32.9]} 16. a3 {[%clk 0:02:15.5]}
16... Ba5 {[%clk 0:02:22.3]} 17. b4 {[%clk 0:02:12.4]} 17... Bb6 {[%clk
0:02:22.6]} 18. Na4 {[%clk 0:02:10.6]} 18... Rhe8 {[%clk 0:02:03.8]} 19. Nxb6
{[%clk 0:01:45.1]} 19... axb6 {[%clk 0:02:04.7]} 20. Ne1 {[%clk 0:01:34.7]}
20... Nd7 {[%clk 0:01:51]} 21. f4 {[%clk 0:01:26.6]} 21... f5 {[%clk 0:01:46]}
22. e5 {[%clk 0:01:24.2]} 22... Bh5+ {[%clk 0:01:45.8]} 23. Ke3 {[%clk
0:01:02.5]} 23... g5 {[%clk 0:01:43.6]} 24. d4 {[%clk 0:00:49.9]} 24... Nf6
{[%clk 0:01:43.2]} 25. Bc3 {[%clk 0:00:45]} 25... Nd5+ {[%clk 0:01:42.5]} 26.
Kf2 {[%clk 0:00:41.1]} 26... Nxf4 {[%clk 0:01:42.3]} 27. a4 {[%clk 0:00:34.9]}
27... Nd5 {[%clk 0:01:41.1]} 28. Bd2 {[%clk 0:00:34.6]} 28... f4 {[%clk
0:01:38.9]} 29. Rc4 {[%clk 0:00:27.8]} 29... Bg6 {[%clk 0:01:36]} 30. Ra3 {[%clk
0:00:24.8]} 30... Ne7 {[%clk 0:01:30.6]} 31. Nf3 {[%clk 0:00:19.3]} 31... Nc6
{[%clk 0:01:29.8]} 32. b5 {[%clk 0:00:17.9]} 32... Ne7 {[%clk 0:01:27.5]} 33.
Rac3 {[%clk 0:00:17.9]} 33... Nd5 {[%clk 0:01:27.3]} 34. Rc1 {[%clk 0:00:17.2]}
34... Rd7 {[%clk 0:01:23.7]} 35. Be1 {[%clk 0:00:16]} 35... Bd3 {[%clk
0:01:19.5]} 36. R4c2 {[%clk 0:00:09.2]} 36... Bxc2 {[%clk 0:01:19.4]} 37. Rxc2
{[%clk 0:00:10.1]} 37... Ne7 {[%clk 0:01:15]} 38. Rc4 {[%clk 0:00:10]} 38... Nf5
{[%clk 0:01:14.7]} 39. Bc3 {[%clk 0:00:10.2]} 39... Ne3 {[%clk 0:01:13.9]} 40.
Rb4 {[%clk 0:00:09.7]} 40... Red8 {[%clk 0:01:10.5]} 41. Nd2 {[%clk 0:00:09.4]}
41... Nd1+ {[%clk 0:01:10.4]} 0-1

[Event "Late-Titled-Tuesday-Blitz-March-05-2024"]
[Site "Chess.com"]
[Date "2024.03.05"]
[Round "8"]
[White "Gennady_Kozlov"]
[Black "ContrVersia"]
[Result "0-1"]
[WhiteElo "2686"]
[BlackElo "2863"]
[TimeControl "180+1"]
[EndTime "15:24:42 PST"]
[Termination "ContrVersia won by resignation"]

1. b3 {[%clk 0:02:58.2]} 1... Nf6 {[%clk 0:02:58.1]} 2. Bb2 {[%clk 0:02:59.1]}
2... g6 {[%clk 0:02:58.7]} 3. e3 {[%clk 0:02:59.5]} 3... Bg7 {[%clk 0:02:58.8]}
4. f4 {[%clk 0:03:00.4]} 4... O-O {[%clk 0:02:59.3]} 5. Nf3 {[%clk 0:03:01.1]}
5... d6 {[%clk 0:02:59.9]} 6. Be2 {[%clk 0:03:01.7]} 6... e5 {[%clk 0:02:59.9]}
7. O-O {[%clk 0:03:01.3]} 7... Nc6 {[%clk 0:02:56.6]} 8. fxe5 {[%clk 0:03:01]}
8... Nd7 {[%clk 0:02:56.4]} 9. Nc3 {[%clk 0:03:01.4]} 9... dxe5 {[%clk
0:02:55.2]} 10. Qe1 {[%clk 0:03:01.1]} 10... e4 {[%clk 0:02:47.9]} 11. Nh4
{[%clk 0:02:56.9]} 11... f5 {[%clk 0:02:33.2]} 12. g3 {[%clk 0:02:56.5]} 12...
Nde5 {[%clk 0:02:31.9]} 13. Ng2 {[%clk 0:02:55.8]} 13... Be6 {[%clk 0:02:30.4]}
14. Rb1 {[%clk 0:02:54.2]} 14... Qd7 {[%clk 0:02:28.7]} 15. Nf4 {[%clk
0:02:54.4]} 15... Bf7 {[%clk 0:02:28.7]} 16. h4 {[%clk 0:02:54.6]} 16... Rad8
{[%clk 0:02:27.8]} 17. Bc1 {[%clk 0:02:51.6]} 17... h6 {[%clk 0:02:27.1]} 18.
Nd1 {[%clk 0:02:51]} 18... g5 {[%clk 0:02:25.6]} 19. hxg5 {[%clk 0:02:51.9]}
19... hxg5 {[%clk 0:02:26.2]} 20. Nh3 {[%clk 0:02:52]} 20... Qe7 {[%clk
0:02:21.4]} 21. Ndf2 {[%clk 0:02:50.2]} 21... Be6 {[%clk 0:02:03.7]} 22. Kg2
{[%clk 0:02:46.3]} 22... Nf3 {[%clk 0:02:01.9]} 23. Bxf3 {[%clk 0:02:44.8]}
23... exf3+ {[%clk 0:02:02.3]} 24. Kg1 {[%clk 0:02:43.6]} 24... Qd6 {[%clk
0:01:53.3]} 25. Nh1 {[%clk 0:02:34.1]} 25... g4 {[%clk 0:01:44]} 26. Nf4 {[%clk
0:02:33.7]} 26... Bf7 {[%clk 0:01:36.5]} 27. d4 {[%clk 0:02:28.8]} 27... Rfe8
{[%clk 0:01:36.7]} 28. Qd2 {[%clk 0:02:26.1]} 28... Nxd4 {[%clk 0:01:23.2]} 29.
exd4 {[%clk 0:02:25.3]} 29... Bxd4+ {[%clk 0:01:24.1]} 30. Nf2 {[%clk
0:02:24.9]} 30... Qh6 {[%clk 0:01:11.8]} 31. Nd3 {[%clk 0:01:50.4]} 31... Be3
{[%clk 0:00:58.7]} 32. Qxe3 {[%clk 0:01:34.5]} 32... Rxe3 {[%clk 0:00:59.6]} 33.
Bxe3 {[%clk 0:01:35]} 33... Qxe3 {[%clk 0:00:59.1]} 34. Rbe1 {[%clk 0:01:35.8]}
34... Qb6 {[%clk 0:00:54.6]} 35. Re5 {[%clk 0:01:33.6]} 35... Qf6 {[%clk
0:00:48.3]} 36. Rfe1 {[%clk 0:01:31.4]} 36... b6 {[%clk 0:00:45.6]} 37. Re7
{[%clk 0:01:25.3]} 37... Kf8 {[%clk 0:00:40.6]} 38. Rxc7 {[%clk 0:01:22.4]}
38... Qd6 {[%clk 0:00:40.1]} 39. Rxf7+ {[%clk 0:01:17.8]} 39... Kxf7 {[%clk
0:00:39.4]} 40. Ne5+ {[%clk 0:01:18.7]} 40... Kg7 {[%clk 0:00:36.3]} 41. Nfd3
{[%clk 0:01:14.3]} 41... Qd4+ {[%clk 0:00:34.7]} 42. Nf2 {[%clk 0:01:13.6]}
42... Re8 {[%clk 0:00:33.7]} 43. Nxf3 {[%clk 0:01:13.3]} 43... Rxe1+ {[%clk
0:00:31.2]} 44. Nxe1 {[%clk 0:01:14.2]} 44... Qe3 {[%clk 0:00:31.2]} 45. Nd3
{[%clk 0:01:13.3]} 45... Qxg3+ {[%clk 0:00:30.9]} 46. Kf1 {[%clk 0:01:14.2]}
46... Qd6 {[%clk 0:00:27.4]} 47. Kg2 {[%clk 0:01:13.9]} 47... Kg6 {[%clk
0:00:26.8]} 48. Nd1 {[%clk 0:01:12.8]} 48... f4 {[%clk 0:00:26]} 49. N1f2 {[%clk
0:01:12.4]} 49... Kf5 {[%clk 0:00:23.5]} 50. c4 {[%clk 0:01:08.9]} 50... f3+
{[%clk 0:00:23.5]} 51. Kf1 {[%clk 0:01:08.4]} 51... g3 {[%clk 0:00:23.3]} 0-1

[Event "Late-Titled-Tuesday-Blitz-March-05-2024"]
[Site "Chess.com"]
[Date "2024.03.05"]
[Round "8"]
[White "Heydarli77"]
[Black "Statham_01"]
[Result "1-0"]
[WhiteElo "2421"]
[BlackElo "2579"]
[TimeControl "180+1"]
[EndTime "15:24:43 PST"]
[Termination "Heydarli77 won by resignation"]

1. d4 {[%clk 0:03:00.9]} 1... Nf6 {[%clk 0:02:59.2]} 2. c4 {[%clk 0:03:00]} 2...
e5 {[%clk 0:02:58.5]} 3. dxe5 {[%clk 0:02:58.6]} 3... Ng4 {[%clk 0:02:59.1]} 4.
Nf3 {[%clk 0:02:57.8]} 4... Nc6 {[%clk 0:02:59.2]} 5. Nbd2 {[%clk 0:02:57.7]}
5... Ngxe5 {[%clk 0:02:56]} 6. e3 {[%clk 0:02:56.8]} 6... Bc5 {[%clk 0:02:53.2]}
7. Be2 {[%clk 0:02:56.2]} 7... d6 {[%clk 0:02:53.2]} 8. O-O {[%clk 0:02:55.6]}
8... O-O {[%clk 0:02:53.7]} 9. b3 {[%clk 0:02:51.8]} 9... Bf5 {[%clk 0:02:50.7]}
10. Bb2 {[%clk 0:02:50.3]} 10... Qe7 {[%clk 0:02:43]} 11. Nd4 {[%clk 0:02:47]}
11... Bg6 {[%clk 0:02:23.1]} 12. N2f3 {[%clk 0:02:41.5]} 12... Rad8 {[%clk
0:02:15.5]} 13. Nxc6 {[%clk 0:02:39]} 13... Nxc6 {[%clk 0:02:08]} 14. Bd3 {[%clk
0:02:34.7]} 14... Bh5 {[%clk 0:02:03.6]} 15. Be2 {[%clk 0:02:27.5]} 15... Ne5
{[%clk 0:02:00]} 16. Nxe5 {[%clk 0:02:25.3]} 16... dxe5 {[%clk 0:01:58.3]} 17.
Qc2 {[%clk 0:02:21.6]} 17... Bg6 {[%clk 0:01:55.6]} 18. Qc3 {[%clk 0:02:20.1]}
18... f6 {[%clk 0:01:36.9]} 19. a3 {[%clk 0:02:09.6]} 19... c6 {[%clk
0:01:30.2]} 20. b4 {[%clk 0:02:09.3]} 20... Bb6 {[%clk 0:01:27.8]} 21. c5 {[%clk
0:02:08.4]} 21... Bc7 {[%clk 0:01:27.9]} 22. Rad1 {[%clk 0:02:07.1]} 22... Kh8
{[%clk 0:01:24.3]} 23. g3 {[%clk 0:02:03.7]} 23... Be4 {[%clk 0:01:08.4]} 24.
Qc4 {[%clk 0:01:55.7]} 24... Bd5 {[%clk 0:00:58.6]} 25. Qc2 {[%clk 0:01:52.5]}
25... Qe6 {[%clk 0:00:52.6]} 26. Rd2 {[%clk 0:01:45.5]} 26... Qh3 {[%clk
0:00:39.3]} 27. f3 {[%clk 0:01:42.2]} 27... h5 {[%clk 0:00:18.7]} 28. e4 {[%clk
0:01:39.3]} 28... Bb3 {[%clk 0:00:14.8]} 29. Qc1 {[%clk 0:01:34.2]} 29... Rxd2
{[%clk 0:00:14.6]} 30. Qxd2 {[%clk 0:01:32.9]} 30... b6 {[%clk 0:00:10.3]} 31.
Qe3 {[%clk 0:01:29.6]} 31... Be6 {[%clk 0:00:07.7]} 32. Rd1 {[%clk 0:01:27.9]}
32... Rd8 {[%clk 0:00:07.3]} 33. Rxd8+ {[%clk 0:01:25.7]} 33... Bxd8 {[%clk
0:00:08.2]} 34. Bf1 {[%clk 0:01:24.8]} 34... bxc5 {[%clk 0:00:04.8]} 35. Bxh3
{[%clk 0:01:23.2]} 35... Bxh3 {[%clk 0:00:05.7]} 36. bxc5 {[%clk 0:01:20.3]}
36... Be6 {[%clk 0:00:05.2]} 37. Qd3 {[%clk 0:01:16.1]} 37... Be7 {[%clk
0:00:05.2]} 38. Qe3 {[%clk 0:01:12]} 38... h4 {[%clk 0:00:05.2]} 39. gxh4 {[%clk
0:01:11.1]} 39... Kh7 {[%clk 0:00:05.8]} 40. Kg2 {[%clk 0:01:10.9]} 40... Bf7
{[%clk 0:00:05.7]} 41. Bc3 {[%clk 0:01:09.2]} 41... Bh5 {[%clk 0:00:06]} 42. Ba5
{[%clk 0:01:08.5]} 1-0

[Event "Late-Titled-Tuesday-Blitz-March-05-2024"]
[Site "Chess.com"]
[Date "2024.03.05"]
[Round "8"]
[White "esteban062000"]
[Black "jactorres"]
[Result "1-0"]
[WhiteElo "2155"]
[BlackElo "2222"]
[TimeControl "180+1"]
[EndTime "15:24:43 PST"]
[Termination "esteban062000 won on time"]

1. e4 {[%clk 0:03:00.9]} 1... e5 {[%clk 0:02:59.1]} 2. Nf3 {[%clk 0:03:00.8]}
2... Nc6 {[%clk 0:02:59.4]} 3. Bb5 {[%clk 0:03:01.1]} 3... a6 {[%clk 0:02:59.8]}
4. Ba4 {[%clk 0:03:01.2]} 4... Nf6 {[%clk 0:03:00.4]} 5. d3 {[%clk 0:02:58.3]}
5... b5 {[%clk 0:02:59]} 6. Bb3 {[%clk 0:02:58.1]} 6... Bc5 {[%clk 0:02:59.7]}
7. O-O {[%clk 0:02:57.9]} 7... d6 {[%clk 0:03:00.2]} 8. a4 {[%clk 0:02:56.7]}
8... Rb8 {[%clk 0:02:59.2]} 9. axb5 {[%clk 0:02:55.6]} 9... axb5 {[%clk
0:02:59.4]} 10. Be3 {[%clk 0:02:55.7]} 10... Bb6 {[%clk 0:02:56]} 11. Bxb6
{[%clk 0:02:53]} 11... Rxb6 {[%clk 0:02:55.7]} 12. Nc3 {[%clk 0:02:53.3]} 12...
O-O {[%clk 0:02:52.2]} 13. h3 {[%clk 0:02:49.5]} 13... Ne7 {[%clk 0:02:52.3]}
14. Ra5 {[%clk 0:02:43.9]} 14... c6 {[%clk 0:02:46.2]} 15. Qa1 {[%clk
0:02:37.9]} 15... Ng6 {[%clk 0:02:43]} 16. Ra8 {[%clk 0:02:32.7]} 16... Qc7
{[%clk 0:02:27.7]} 17. Qa2 {[%clk 0:02:15.5]} 17... Bb7 {[%clk 0:02:17.9]} 18.
Rxf8+ {[%clk 0:01:47.6]} 18... Kxf8 {[%clk 0:02:17.3]} 19. Ng5 {[%clk
0:01:43.1]} 19... Ra6 {[%clk 0:02:00.6]} 20. Qb1 {[%clk 0:01:40.8]} 20... d5
{[%clk 0:01:56.8]} 21. exd5 {[%clk 0:01:40.5]} 21... cxd5 {[%clk 0:01:57.2]} 22.
Nxb5 {[%clk 0:01:32]} 22... Qd7 {[%clk 0:01:42.1]} 23. Nc3 {[%clk 0:01:24.2]}
23... Qf5 {[%clk 0:01:40.2]} 24. Nf3 {[%clk 0:01:17.9]} 24... Nf4 {[%clk
0:01:32]} 25. Qe1 {[%clk 0:01:09.2]} 25... Qg6 {[%clk 0:01:28.2]} 26. g3 {[%clk
0:00:59.2]} 26... Nxh3+ {[%clk 0:01:27.7]} 27. Kh2 {[%clk 0:00:52.9]} 27... Qh5
{[%clk 0:00:26.1]} 28. Nh4 {[%clk 0:00:51]} 28... Nf4 {[%clk 0:00:15.4]} 29. Ne4
{[%clk 0:00:46.9]} 29... Ng4+ {[%clk 0:00:15.5]} 30. Kh1 {[%clk 0:00:42.7]}
30... dxe4 {[%clk 0:00:13.6]} 31. Qb4+ {[%clk 0:00:42.8]} 31... Kg8 {[%clk
0:00:02.9]} 32. Qxb7 {[%clk 0:00:43.5]} 32... h6 {[%clk 0:00:01.4]} 33. Qxa6
{[%clk 0:00:41.6]} 33... Kh7 {[%clk 0:00:01.5]} 34. Qb7 {[%clk 0:00:38.2]} 1-0

[Event "Late-Titled-Tuesday-Blitz-March-05-2024"]
[Site "Chess.com"]
[Date "2024.03.05"]
[Round "8"]
[White "ShahMatKanal"]
[Black "Sajkochess"]
[Result "1-0"]
[WhiteElo "2492"]
[BlackElo "2325"]
[TimeControl "180+1"]
[EndTime "15:24:45 PST"]
[Termination "ShahMatKanal won by checkmate"]

1. e4 {[%clk 0:03:00.9]} 1... c6 {[%clk 0:03:00.3]} 2. d4 {[%clk 0:02:50.1]}
2... d5 {[%clk 0:03:00.9]} 3. e5 {[%clk 0:02:50.7]} 3... c5 {[%clk 0:03:00.6]}
4. dxc5 {[%clk 0:02:47.9]} 4... Nc6 {[%clk 0:03:00.3]} 5. a3 {[%clk 0:02:48.3]}
5... Nxe5 {[%clk 0:02:48.6]} 6. b4 {[%clk 0:02:48.3]} 6... g6 {[%clk 0:02:29.3]}
7. Nf3 {[%clk 0:02:43.9]} 7... Bg7 {[%clk 0:02:28.4]} 8. Nxe5 {[%clk 0:02:38.9]}
8... Bxe5 {[%clk 0:02:29.3]} 9. c3 {[%clk 0:02:36.5]} 9... Nf6 {[%clk
0:02:00.3]} 10. f4 {[%clk 0:02:18.5]} 10... Bc7 {[%clk 0:01:55]} 11. Bd3 {[%clk
0:02:10.6]} 11... O-O {[%clk 0:01:49.1]} 12. O-O {[%clk 0:02:06.5]} 12... Ne4
{[%clk 0:01:33.9]} 13. Ra2 {[%clk 0:01:58.4]} 13... h5 {[%clk 0:01:23.4]} 14.
Be3 {[%clk 0:01:52.9]} 14... Bf5 {[%clk 0:01:22.5]} 15. Bd4 {[%clk 0:01:49.3]}
15... e5 {[%clk 0:01:01.6]} 16. fxe5 {[%clk 0:01:39.2]} 16... Qg5 {[%clk
0:01:01.8]} 17. Qf3 {[%clk 0:01:31.1]} 17... Rae8 {[%clk 0:00:53.3]} 18. Bb5
{[%clk 0:00:57.4]} 18... Rxe5 {[%clk 0:00:48.1]} 19. Bxe5 {[%clk 0:00:54.5]}
19... Bxe5 {[%clk 0:00:49]} 20. c6 {[%clk 0:00:49.1]} 20... Bg4 {[%clk
0:00:34.8]} 21. Qd3 {[%clk 0:00:43.9]} 21... Qh4 {[%clk 0:00:32.3]} 22. g3
{[%clk 0:00:42.5]} 22... Nxg3 {[%clk 0:00:31.3]} 23. hxg3 {[%clk 0:00:37.7]}
23... Bxg3 {[%clk 0:00:31.5]} 24. cxb7 {[%clk 0:00:34]} 24... d4 {[%clk
0:00:15.8]} 25. Bc4 {[%clk 0:00:32]} 25... Kh7 {[%clk 0:00:09.6]} 26. Rg2 {[%clk
0:00:29.9]} 26... Be5 {[%clk 0:00:05.1]} 27. Bxf7 {[%clk 0:00:28]} 27... Bf5
{[%clk 0:00:04.4]} 28. Bxg6+ {[%clk 0:00:25.4]} 28... Bxg6 {[%clk 0:00:04.1]}
29. Qxg6+ {[%clk 0:00:24.8]} 29... Kh8 {[%clk 0:00:04.6]} 30. Rxf8# {[%clk
0:00:23.5]} 1-0

[Event "Late-Titled-Tuesday-Blitz-March-05-2024"]
[Site "Chess.com"]
[Date "2024.03.05"]
[Round "8"]
[White "bazar-wokzal"]
[Black "Schattman"]
[Result "1-0"]
[WhiteElo "2562"]
[BlackElo "2428"]
[TimeControl "180+1"]
[EndTime "15:24:49 PST"]
[Termination "bazar-wokzal won on time"]

1. e4 {[%clk 0:03:00.9]} 1... c6 {[%clk 0:02:56.4]} 2. d4 {[%clk 0:03:00.7]}
2... d5 {[%clk 0:02:56.5]} 3. f3 {[%clk 0:03:01.2]} 3... Qb6 {[%clk 0:02:55.6]}
4. Nc3 {[%clk 0:03:00.6]} 4... dxe4 {[%clk 0:02:53.2]} 5. fxe4 {[%clk
0:02:58.4]} 5... e5 {[%clk 0:02:52.8]} 6. dxe5 {[%clk 0:02:51.2]} 6... Be6
{[%clk 0:02:47.4]} 7. Nf3 {[%clk 0:02:41.3]} 7... Nd7 {[%clk 0:02:47.1]} 8. Bd3
{[%clk 0:02:24.3]} 8... Ne7 {[%clk 0:02:39.8]} 9. Ng5 {[%clk 0:02:12.9]} 9...
Nxe5 {[%clk 0:02:32]} 10. Nxe6 {[%clk 0:02:12.2]} 10... fxe6 {[%clk 0:02:32.4]}
11. Qh5+ {[%clk 0:02:10.5]} 11... N7g6 {[%clk 0:02:19.6]} 12. Bd2 {[%clk
0:02:02.7]} 12... O-O-O {[%clk 0:02:02.5]} 13. O-O-O {[%clk 0:01:55.7]} 13...
Nxd3+ {[%clk 0:01:25.3]} 14. cxd3 {[%clk 0:01:55.5]} 14... Rxd3 {[%clk
0:01:20.6]} 15. Bg5 {[%clk 0:01:46.7]} 15... Rxd1+ {[%clk 0:01:13.2]} 16. Rxd1
{[%clk 0:01:46]} 16... Be7 {[%clk 0:01:09.7]} 17. Bxe7 {[%clk 0:01:45]} 17...
Nxe7 {[%clk 0:00:59.5]} 18. Qf7 {[%clk 0:01:44.4]} 18... Qe3+ {[%clk 0:00:42.3]}
19. Kb1 {[%clk 0:01:35]} 19... Qg5 {[%clk 0:00:41.5]} 20. Qxe6+ {[%clk
0:01:33.8]} 20... Kb8 {[%clk 0:00:41.9]} 21. Qd6+ {[%clk 0:01:27.2]} 21... Kc8
{[%clk 0:00:42]} 22. Qe6+ {[%clk 0:01:17.6]} 22... Kb8 {[%clk 0:00:34.8]} 23.
Rd7 {[%clk 0:01:17.5]} 23... Nc8 {[%clk 0:00:24.8]} 24. g3 {[%clk 0:01:09.3]}
24... Rf8 {[%clk 0:00:20.1]} 25. a3 {[%clk 0:01:08.7]} 25... Qe3 {[%clk
0:00:13]} 26. Qe5+ {[%clk 0:01:03.5]} 26... Ka8 {[%clk 0:00:12.9]} 27. Qc7
{[%clk 0:00:57.9]} 27... Qb6 {[%clk 0:00:08.2]} 28. Qxb6 {[%clk 0:00:54.3]}
28... axb6 {[%clk 0:00:06.9]} 29. Rxg7 {[%clk 0:00:53.6]} 29... h5 {[%clk
0:00:07.2]} 30. Rh7 {[%clk 0:00:52.3]} 30... Nd6 {[%clk 0:00:07.4]} 31. Rxh5
{[%clk 0:00:51.5]} 31... Rf2 {[%clk 0:00:08]} 32. b3 {[%clk 0:00:46.7]} 32... b5
{[%clk 0:00:07.6]} 33. e5 {[%clk 0:00:46]} 33... Nf7 {[%clk 0:00:05]} 34. e6
{[%clk 0:00:44.8]} 34... Nd6 {[%clk 0:00:05.3]} 35. e7 {[%clk 0:00:42.9]} 35...
Re2 {[%clk 0:00:04.8]} 36. Nxe2 {[%clk 0:00:42]} 1-0